bitfinex/quotes_BTCUSD_20230110
["timestamp","ask_amount","ask_price","bid_price","bid_amount"]
[1673368080215,2.78799026,17329.0,17328.0,0.0004464]
[1673368080477,0.78699026,17329.0,17328.0,0.0004464]
[1673368080974,0.65199026,17329.0,17328.0,0.0004464]
[1673368081225,0.78699026,17329.0,17328.0,0.0004464]
[1673368081474,0.52776536,17329.0,17328.0,0.0004464]
[1673368081711,0.78699026,17329.0,17328.0,0.0004464]
[1673368081971,0.53626536,17329.0,17328.0,0.0004464]
[1673368082211,0.35495262,17329.0,17328.0,1.75966825]
[1673368082726,0.15495262,17329.0,17328.0,1.75966825]
[1673368083736,0.15495262,17329.0,17328.0,1.75281825]
[1673368083980,0.15495262,17329.0,17328.0,1.1546464]
[1673368084754,0.15495262,17329.0,17328.0,0.5775464]
[1673368087105,0.32776536,17329.0,17328.0,0.5775464]
[1673368088595,0.58699026,17329.0,17328.0,0.5775464]
[1673368089097,0.32776536,17329.0,17328.0,0.5775464]
[1673368089841,0.78699026,17329.0,17328.0,0.0004464]
[1673368090087,1.14809826,17329.0,17328.0,0.0004464]
[1673368090346,1.4087016,17329.0,17328.0,0.0004464]
[1673368090599,1.4087016,17329.0,17328.0,0.0003369]
[1673368090600,3.50292218,17329.0,17328.0,0.0003369]
[1673368091135,3.1572782,17329.0,17328.0,0.0003369]
[1673368091389,5.0222782,17329.0,17328.0,0.0003369]
[1673368091951,5.7343452,17329.0,17328.0,0.0003369]
[1673368092939,5.7353452,17329.0,17328.0,0.0003369]
[1673368093701,5.30327841,17329.0,17328.0,0.0003369]
[1673368093966,5.60327841,17329.0,17328.0,0.0003369]
[1673368094204,6.77429308,17329.0,17328.0,0.0003369]
[1673368094494,7.29321502,17329.0,17328.0,0.0003369]
[1673368094711,8.26990608,17329.0,17328.0,0.0003369]
[1673368094949,8.40390608,17329.0,17328.0,0.0003369]
[1673368095776,7.88498414,17329.0,17328.0,0.0003369]
[1673368095986,7.74998414,17329.0,17328.0,0.0003369]
[1673368096241,7.88498414,17329.0,17328.0,0.0003369]
[1673368097271,8.40390608,17329.0,17328.0,1.393e-05]
[1673368097778,8.26890608,17329.0,17328.0,1.393e-05]
[1673368098769,8.40390608,17329.0,17328.0,1.393e-05]
[1673368099239,8.40390608,17329.0,17327.0,0.00459524]
[1673368099240,0.2,17328.0,17327.0,0.00459524]
[1673368099493,4.7525835,17328.0,17327.0,0.00459524]
[1673368099714,4.17319244,17328.0,17327.0,0.00459524]
[1673368100229,4.65364413,17328.0,17327.0,0.00449162]
[1673368100998,4.65464413,17328.0,17327.0,0.00449162]
[1673368101291,4.88629244,17328.0,17327.0,0.004388]
[1673368101551,4.75129244,17328.0,17327.0,0.004388]
[1673368101803,5.81109407,17328.0,17327.0,0.004388]
[1673368102056,5.09670301,17328.0,17327.0,0.004388]
[1673368102307,5.23170301,17328.0,17327.0,0.00428438]
[1673368102555,4.65460301,17328.0,17327.0,0.00428438]
[1673368103310,4.65460301,17328.0,17327.0,0.00418076]
[1673368103564,4.51960301,17328.0,17327.0,0.00418076]
[1673368103815,5.38773594,17328.0,17327.0,0.00418076]
[1673368104320,5.38773594,17328.0,17327.0,0.00407714]
[1673368104806,4.97563594,17328.0,17327.0,0.00407714]
[1673368105052,4.81063594,17328.0,17327.0,0.00407714]
[1673368105306,4.81063594,17328.0,17327.0,0.00397352]
[1673368105592,4.65460301,17328.0,17327.0,0.00397352]
[1673368105861,4.51960301,17328.0,17327.0,0.00397352]
[1673368106129,4.65460301,17328.0,17327.0,0.00397352]
[1673368106364,4.65505265,17328.0,17327.0,0.0038699]
[1673368106610,5.1684137,17328.0,17327.0,0.0038699]
[1673368106857,4.65505265,17328.0,17327.0,0.0038699]
[1673368107109,4.88574208,17328.0,17327.0,0.0038699]
[1673368107356,4.88674208,17328.0,17327.0,0.0037572]
[1673368107631,4.75174208,17328.0,17327.0,0.0037572]
[1673368107888,4.88674208,17328.0,17327.0,0.0037572]
[1673368108149,4.88674208,17328.0,17327.0,0.0036445]
[1673368108150,4.97894879,17328.0,17327.0,0.0036445]
[1673368108441,4.22166688,17328.0,17327.0,0.0036445]
[1673368108664,2.4812146,17328.0,17327.0,0.0036445]
[1673368108910,4.06778499,17328.0,17327.0,0.0036445]
[1673368109168,3.67266694,17328.0,17327.0,0.0036445]
[1673368109428,1.9041151,17328.0,17327.0,0.0035318]
[1673368109979,0.86986167,17328.0,17327.0,0.0103818]
[1673368110221,0.50875367,17328.0,17327.0,0.0034191]
[1673368110475,0.76787222,17328.0,17327.0,0.0034191]
[1673368110725,1.12898022,17328.0,17327.0,0.0034191]
[1673368110996,0.76787222,17328.0,17327.0,0.0034191]
[1673368111243,0.77537222,17328.0,17327.0,0.00331548]
[1673368111996,0.51625367,17328.0,17327.0,0.00331548]
[1673368112248,0.51625367,17328.0,17327.0,0.00321186]
[1673368112505,0.1435,17328.0,17327.0,0.00321186]
[1673368112780,0.1435,17328.0,17327.0,1.99252286]
[1673368112781,0.135,17328.0,17327.0,1.99252286]
[1673368113565,0.135,17328.0,17327.0,1.99241924]
[1673368114351,0.135,17328.0,17327.0,1.84414924]
[1673368115384,0.135,17328.0,17327.0,2.54414924]
[1673368115638,0.135,17328.0,17327.0,2.62272324]
[1673368116166,0.135,17328.0,17327.0,2.54414924]
[1673368117429,0.135,17328.0,17327.0,2.53729924]
[1673368120002,0.135,17328.0,17327.0,1.83729924]
[1673368121352,0.135,17328.0,17327.0,1.15737424]
[1673368122098,0.135,17328.0,17327.0,0.58024124]
[1673368122343,0.30775367,17328.0,17327.0,0.00310824]
[1673368122640,0.56687222,17328.0,17327.0,0.00310824]
[1673368122860,1.10916743,17328.0,17327.0,0.00310824]
[1673368123102,1.54258351,17328.0,17327.0,0.00310824]
[1673368123628,1.54358351,17328.0,17327.0,0.00310824]
[1673368123868,1.11016743,17328.0,17327.0,0.00310824]
[1673368124183,1.91978411,17328.0,17327.0,0.00310824]
[1673368124434,4.48728924,17328.0,17327.0,0.00300099]
[1673368124687,5.06438924,17328.0,17327.0,0.00300099]
[1673368124933,4.88818864,17328.0,17327.0,0.00300099]
[1673368125242,4.88818864,17328.0,17327.0,0.00288829]
[1673368125443,4.32130266,17328.0,17327.0,0.00288829]
[1673368125692,4.88831733,17328.0,17327.0,0.00288829]
[1673368125955,4.31121733,17328.0,17327.0,0.00288829]
[1673368126468,4.31121733,17328.0,17327.0,0.00277559]
[1673368126711,4.17621733,17328.0,17327.0,0.00277559]
[1673368126956,4.31121733,17328.0,17327.0,0.00277559]
[1673368127220,4.31121733,17328.0,17327.0,0.00266289]
[1673368127997,4.88831733,17328.0,17327.0,0.00266289]
[1673368128255,4.88831733,17328.0,17327.0,0.00255927]
[1673368129030,4.6981246,17328.0,17327.0,0.00255927]
[1673368129274,5.2752246,17328.0,17327.0,3.75e-06]
[1673368129527,6.40121566,17328.0,17327.0,3.75e-06]
[1673368129790,6.32779404,17328.0,17326.0,0.00517533]
[1673368130049,3.78457297,17327.0,17326.0,0.00517533]
[1673368130319,4.93883897,17327.0,17326.0,0.00517533]
[1673368131077,7.07483897,17327.0,17326.0,0.00517533]
[1673368131345,7.37837241,17327.0,17326.0,0.00506263]
[1673368131896,6.55636866,17327.0,17326.0,0.00506263]
[1673368132105,7.07483897,17327.0,17326.0,0.00506263]
[1673368132355,6.55636866,17327.0,17326.0,0.00494993]
[1673368133385,6.55636866,17327.0,17326.0,0.00483723]
[1673368133887,7.07483897,17327.0,17326.0,0.00483723]
[1673368134201,7.65423003,17327.0,17326.0,0.00472453]
[1673368134912,7.51823003,17327.0,17326.0,0.00472453]
[1673368135154,7.51823003,17327.0,17326.0,0.00461183]
[1673368135921,6.93883897,17327.0,17326.0,0.00461183]
[1673368136187,6.93883897,17327.0,17326.0,0.00449913]
[1673368136457,7.13342836,17327.0,17326.0,0.00018163]
[1673368137252,7.07452578,17327.0,17326.0,6.893e-05]
[1673368137511,6.63852578,17327.0,17326.0,6.893e-05]
[1673368137757,6.25636866,17327.0,17326.0,6.893e-05]
[1673368138007,6.12036866,17327.0,17326.0,6.893e-05]
[1673368138263,6.63852578,17327.0,17326.0,9e-08]
[1673368138516,6.12036866,17327.0,17326.0,9e-08]
[1673368138773,6.42036866,17327.0,17326.0,9e-08]
[1673368139028,6.55636866,17327.0,17326.0,9e-08]
[1673368139541,6.68801543,17327.0,17326.0,9e-08]
[1673368139807,6.31158919,17327.0,17326.0,9e-08]
[1673368140059,4.4450422,17327.0,17326.0,9e-08]
[1673368140567,2.92874589,17327.0,17326.0,9e-08]
[1673368142165,2.93824589,17327.0,17326.0,9e-08]
[1673368142918,0.93824589,17327.0,17326.0,9e-08]
[1673368143193,0.67925942,17327.0,17326.0,9e-08]
[1673368143423,1.13824589,17327.0,17325.0,0.00506281]
[1673368143675,0.369608,17326.0,17325.0,0.00506281]
[1673368143934,0.0085,17326.0,17325.0,0.00506281]
[1673368144191,0.2085,17326.0,17325.0,0.00506281]
[1673368144456,0.2085,17326.0,17325.0,0.00495011]
[1673368144702,0.38115142,17326.0,17325.0,0.00495011]
[1673368144963,0.74225942,17326.0,17325.0,0.00495011]
[1673368145479,1.00124589,17326.0,17325.0,0.00495011]
[1673368145742,1.13624589,17326.0,17325.0,0.00495011]
[1673368145986,1.00124589,17326.0,17325.0,0.00495011]
[1673368146281,1.13424589,17326.0,17325.0,0.00495011]
[1673368146536,1.26910073,17326.0,17325.0,0.00495011]
[1673368146785,4.69599566,17326.0,17325.0,0.00495011]
[1673368147071,4.56299566,17326.0,17325.0,0.00495011]
[1673368147349,4.69599566,17326.0,17325.0,0.00495011]
[1673368147584,5.14016266,17326.0,17325.0,0.00495011]
[1673368148434,5.13916266,17326.0,17325.0,0.00495011]
[1673368148887,4.84251589,17326.0,17325.0,0.00495011]
[1673368149146,4.70751589,17326.0,17325.0,0.00031658]
[1673368149396,5.27411932,17326.0,17325.0,0.00031658]
[1673368150167,4.84251589,17326.0,17325.0,0.00031658]
[1673368150421,4.74764985,17326.0,17325.0,0.00031658]
[1673368150674,5.27354985,17326.0,17325.0,0.00031658]
[1673368151190,5.70508362,17326.0,17325.0,0.00031658]
[1673368151452,5.70508362,17326.0,17325.0,0.00020388]
[1673368151709,5.85294091,17326.0,17325.0,0.00020388]
[1673368152227,5.71794091,17326.0,17325.0,0.00020388]
[1673368152464,5.71794091,17326.0,17325.0,9.118e-05]
[1673368152465,5.85294091,17326.0,17325.0,9.118e-05]
[1673368152962,6.28441344,17326.0,17325.0,9.118e-05]
[1673368153260,5.70502238,17326.0,17325.0,9.118e-05]
[1673368153590,5.27354985,17326.0,17325.0,9e-08]
[1673368155787,5.79170697,17326.0,17325.0,9e-08]
[1673368156793,5.65670697,17326.0,17325.0,9e-08]
[1673368157052,6.23609803,17326.0,17325.0,9e-08]
[1673368157809,6.37109803,17326.0,17325.0,9e-08]
[1673368158072,6.23609803,17326.0,17325.0,9e-08]
[1673368158572,6.37209803,17326.0,17325.0,9e-08]
[1673368159091,5.21776403,17326.0,17325.0,9e-08]
[1673368159340,6.37209803,17326.0,17325.0,9e-08]
[1673368159839,6.94644566,17326.0,17325.0,9e-08]
[1673368160094,6.3721101,17326.0,17325.0,9e-08]
[1673368161609,6.42840952,17326.0,17325.0,9e-08]
[1673368162369,7.00839486,17326.0,17324.0,0.00611236]
[1673368162630,4.35684107,17325.0,17324.0,0.00611236]
[1673368162896,7.5197242,17325.0,17324.0,0.00611236]
[1673368164719,7.04571154,17325.0,17324.0,0.00611236]
[1673368165980,6.90971154,17325.0,17324.0,0.00611236]
[1673368166228,7.04571154,17325.0,17324.0,0.00611236]
[1673368166747,6.74571154,17325.0,17324.0,0.00611236]
[1673368167022,5.81529977,17325.0,17324.0,0.00611236]
[1673368167288,6.65977005,17325.0,17324.0,0.00611236]
[1673368167558,5.67000446,17325.0,17324.0,0.00611236]
[1673368167818,5.09280446,17325.0,17324.0,0.00611236]
[1673368168021,4.73169646,17325.0,17324.0,0.00611236]
[1673368168309,5.43839636,17325.0,17324.0,0.26396031]
[1673368168557,5.43839636,17325.0,17324.0,0.00611236]
[1673368168808,5.09280446,17325.0,17324.0,0.00611236]
[1673368169062,5.09380446,17325.0,17324.0,0.00611236]
[1673368169562,5.19380446,17325.0,17324.0,0.00611236]
[1673368170382,5.53941448,17325.0,17324.0,0.00611236]
[1673368171122,3.80536386,17325.0,17324.0,0.58334536]
[1673368171371,3.80536386,17325.0,17324.0,0.00611236]
[1673368171626,5.53601178,17325.0,17324.0,0.00611236]
[1673368171879,5.19040176,17325.0,17324.0,0.00611236]
[1673368173392,5.53601448,17325.0,17324.0,0.00611236]
[1673368173900,5.19040176,17325.0,17324.0,0.00611236]
[1673368174152,5.53602868,17325.0,17324.0,0.00611236]
[1673368174884,5.19040176,17325.0,17324.0,0.00611236]
[1673368175366,5.76979282,17325.0,17324.0,0.00611236]
[1673368175610,6.11539442,17325.0,17324.0,0.00611236]
[1673368175877,5.53600336,17325.0,17324.0,0.00611236]
[1673368176378,5.1329571,17325.0,17324.0,0.00611236]
[1673368176629,5.53580147,17325.0,17324.0,0.00611236]
[1673368176887,5.1329571,17325.0,17324.0,0.00611236]
[1673368177136,5.53480168,17325.0,17324.0,0.00611236]
[1673368177391,5.53580168,17325.0,17324.0,0.00611236]
[1673368177636,5.1329571,17325.0,17324.0,0.00611236]
[1673368177884,5.53579937,17325.0,17324.0,0.00611236]
[1673368178130,5.1329571,17325.0,17324.0,0.00611236]
[1673368178878,5.53538139,17325.0,17324.0,0.00611236]
[1673368179171,5.53438139,17325.0,17324.0,0.00611236]
[1673368179432,5.53538139,17325.0,17324.0,0.00611236]
[1673368179931,5.18977979,17325.0,17324.0,0.00611236]
[1673368180434,5.51970669,17325.0,17324.0,0.00611236]
[1673368180972,4.7578751,17325.0,17324.0,0.00611236]
[1673368181223,4.7568751,17325.0,17324.0,0.00611236]
[1673368181478,5.18996389,17325.0,17324.0,0.00611236]
[1673368183258,5.18896389,17325.0,17324.0,0.00611236]
[1673368183508,5.53571665,17325.0,17324.0,0.00611236]
[1673368183997,5.18996389,17325.0,17324.0,0.00611236]
[1673368184210,5.53586366,17325.0,17324.0,0.00611236]
[1673368185240,4.96076866,17325.0,17324.0,0.00611236]
[1673368186006,5.53432728,17325.0,17324.0,0.00611236]
[1673368186530,5.13343937,17325.0,17324.0,0.00611236]
[1673368187796,5.3928657,17325.0,17324.0,0.00611236]
[1673368188294,5.13343937,17325.0,17324.0,0.00611236]
[1673368188542,5.54574351,17325.0,17324.0,0.00611236]
[1673368189795,5.13343937,17325.0,17324.0,0.00611236]
[1673368190046,5.39284293,17325.0,17324.0,0.00611236]
[1673368190289,3.39284293,17325.0,17324.0,0.00611236]
[1673368190537,3.54570388,17325.0,17324.0,0.00611236]
[1673368191288,3.19980411,17325.0,17324.0,0.00600396]
[1673368191543,3.19880411,17325.0,17324.0,0.00600396]
[1673368191795,3.19980411,17325.0,17324.0,0.00600396]
[1673368192053,2.36676972,17325.0,17324.0,0.00600396]
[1673368192306,0.67782602,17325.0,17324.0,0.65763524]
[1673368192821,0.40992781,17325.0,17324.0,1.23486824]
[1673368193343,0.40992781,17325.0,17324.0,1.81210124]
[1673368193603,0.236,17325.0,17324.0,1.81210124]
[1673368194844,0.40892781,17325.0,17324.0,1.81210124]
[1673368195349,0.40892781,17325.0,17324.0,1.81199762]
[1673368196345,0.40892781,17325.0,17324.0,1.811894]
[1673368197366,0.40892781,17325.0,17324.0,1.81179038]
[1673368197870,0.236,17325.0,17324.0,1.81179038]
[1673368198118,0.40892781,17325.0,17324.0,1.81179038]
[1673368198383,0.40892781,17325.0,17324.0,1.81168676]
[1673368198649,0.60892781,17325.0,17324.0,1.81168676]
[1673368198894,0.40892781,17325.0,17324.0,1.81168676]
[1673368199150,0.40892781,17325.0,17324.0,1.23445376]
[1673368199395,0.236,17325.0,17324.0,1.81168676]
[1673368200172,0.236,17325.0,17324.0,1.81158314]
[1673368200425,0.436,17325.0,17324.0,1.81158314]
[1673368200684,0.60892781,17325.0,17324.0,1.81158314]
[1673368200926,0.40892781,17325.0,17324.0,1.81158314]
[1673368201184,0.236,17325.0,17324.0,1.81158314]
[1673368202004,0.23334,17325.0,17324.0,1.81158314]
[1673368202235,0.23334,17325.0,17324.0,1.15995186]
[1673368202486,0.23334,17325.0,17324.0,2.37196694]
[1673368202735,0.24470571,17325.0,17324.0,3.05211184]
[1673368202991,0.11136571,17325.0,17324.0,3.05211184]
[1673368203242,0.17936571,17325.0,17324.0,3.22616548]
[1673368203498,0.11136571,17325.0,17324.0,4.09747388]
[1673368203754,0.11136571,17325.0,17324.0,3.79747388]
[1673368204008,0.11136571,17325.0,17324.0,4.09747388]
[1673368204267,0.11136571,17325.0,17324.0,3.1047964]
[1673368204522,0.11136571,17325.0,17324.0,2.49932668]
[1673368204787,0.12336571,17325.0,17324.0,2.51332668]
[1673368205059,0.12336571,17325.0,17324.0,2.45028357]
[1673368205060,0.15035451,17325.0,17324.0,2.45028357]
[1673368205359,0.12636571,17325.0,17324.0,2.46528357]
[1673368206414,0.12636571,17325.0,17324.0,2.12582189]
[1673368206667,0.12636571,17325.0,17324.0,3.09602245]
[1673368206943,0.12636571,17325.0,17324.0,2.55923797]
[1673368207191,0.12636571,17325.0,17324.0,2.85923797]
[1673368207467,0.12636571,17325.0,17324.0,3.72368739]
[1673368207728,0.0001,17330.0,17325.0,0.20523269]
[1673368207978,0.0001,17330.0,17326.0,2.40137981]
[1673368207979,0.0086,17330.0,17326.0,2.40137981]
[1673368208227,0.0086,17330.0,17327.0,0.74850381]
[1673368208503,0.0086,17330.0,17328.0,1.9313]
[1673368208726,0.0001,17330.0,17329.0,0.078561]
[1673368208975,0.0001,17330.0,17329.0,1.232695]
[1673368209229,0.0001,17330.0,17329.0,1.154134]
[1673368209487,0.0591,17330.0,17329.0,1.154134]
[1673368209983,0.1951,17330.0,17329.0,1.857134]
[1673368211544,0.1951,17330.0,17329.0,0.003]
[1673368212286,0.1961,17330.0,17329.0,0.003]
[1673368212606,0.56902781,17330.0,17329.0,0.003]
[1673368212864,1.6089731,17330.0,17329.0,0.003]
[1673368213380,1.19803402,17330.0,17329.0,0.003]
[1673368213646,1.37097458,17330.0,17329.0,0.003]
[1673368213872,1.19754623,17330.0,17329.0,0.003]
[1673368214881,0.93814802,17330.0,17329.0,0.003]
[1673368215136,2.93814802,17330.0,17329.0,0.003]
[1673368215664,2.565708,17330.0,17329.0,0.003]
[1673368215921,0.565708,17330.0,17329.0,0.003]
[1673368216174,0.2046,17330.0,17329.0,0.003]
[1673368216428,0.765708,17330.0,17329.0,0.003]
[1673368217957,0.93814802,17330.0,17329.0,0.003]
[1673368219692,1.19754623,17330.0,17329.0,0.003]
[1673368220229,1.37097458,17330.0,17329.0,0.003]
[1673368220480,1.36997458,17330.0,17329.0,0.003]
[1673368222007,1.36933402,17330.0,17329.0,0.003]
[1673368222263,1.5418345,17330.0,17329.0,0.003]
[1673368222514,1.19696613,17330.0,17329.0,0.003]
[1673368222775,1.54283454,17330.0,17329.0,0.003]
[1673368223024,1.37033402,17330.0,17329.0,0.003]
[1673368224565,1.36933402,17330.0,17329.0,0.003]
[1673368225563,1.54266516,17330.0,17329.0,0.003]
[1673368225810,1.96110157,17330.0,17329.0,0.003]
[1673368226308,3.11572591,17330.0,17329.0,0.003]
[1673368226550,1.96110157,17330.0,17329.0,0.003]
[1673368226803,1.54266516,17330.0,17329.0,0.003]
[1673368227061,1.36943618,17330.0,17329.0,0.003]
[1673368227541,1.80152487,17330.0,17329.0,0.003]
[1673368227749,1.11057637,17330.0,17329.0,0.003]
[1673368227964,1.96123735,17330.0,17329.0,0.003]
[1673368228450,3.11585432,17330.0,17329.0,0.003]
[1673368228947,3.11685639,17330.0,17329.0,0.003]
[1673368229168,3.86880027,17330.0,17329.0,0.003]
[1673368229419,3.04975133,17330.0,17329.0,6.787e-05]
[1673368229673,3.48132964,17330.0,17329.0,6.787e-05]
[1673368229923,2.74975133,17330.0,17329.0,6.787e-05]
[1673368230182,2.33889923,17330.0,17329.0,6.787e-05]
[1673368230437,0.2,17329.0,17326.0,0.577141]
[1673368230676,0.79276792,17328.0,17326.0,1.154307]
[1673368230958,0.0474888,17327.0,17325.0,0.00534769]
[1673368231231,0.73378884,17326.0,17325.0,0.00534769]
[1673368231523,1.03177359,17326.0,17325.0,0.00534769]
[1673368231749,1.17393188,17326.0,17325.0,0.00534769]
[1673368232004,1.58562749,17326.0,17325.0,0.00534769]
[1673368232258,2.91991492,17326.0,17325.0,0.00534769]
[1673368232554,3.03991492,17326.0,17325.0,0.00534769]
[1673368232754,2.92091492,17326.0,17325.0,0.00534769]
[1673368233034,5.04091492,17326.0,17325.0,0.00534769]
[1673368233297,4.92091492,17326.0,17325.0,0.00534769]
[1673368233555,3.92693255,17326.0,17325.0,0.00534769]
[1673368233818,4.66345528,17326.0,17325.0,0.00534769]
[1673368234078,3.50861523,17326.0,17325.0,0.00534769]
[1673368234332,4.66345346,17326.0,17325.0,0.00534769]
[1673368234589,5.44755819,17326.0,17325.0,0.00524407]
[1673368234846,5.79195743,17326.0,17325.0,0.00524407]
[1673368235112,5.07970393,17326.0,17325.0,0.00524407]
[1673368235347,4.23071687,17326.0,17325.0,0.00524407]
[1673368235585,4.48976168,17326.0,17325.0,0.00524407]
[1673368236076,5.81722471,17326.0,17325.0,0.00524407]
[1673368236321,6.23445427,17326.0,17325.0,0.00524407]
[1673368236589,4.48972099,17326.0,17325.0,0.00524407]
[1673368236847,4.49072099,17326.0,17325.0,0.00524407]
[1673368238888,4.48972099,17326.0,17325.0,0.00524407]
[1673368239196,4.49072099,17326.0,17325.0,0.00524407]
[1673368239714,4.31794691,17326.0,17325.0,0.00524407]
[1673368239971,4.66334415,17326.0,17325.0,0.00524407]
[1673368240444,4.31794691,17326.0,17325.0,0.00524407]
[1673368240961,4.31694691,17326.0,17325.0,0.00524407]
[1673368241215,4.05894279,17326.0,17325.0,0.00524407]
[1673368241739,3.69783479,17326.0,17325.0,0.00524407]
[1673368242004,2.05894279,17326.0,17325.0,0.00524407]
[1673368242248,1.69783479,17326.0,17325.0,11.72802207]
[1673368242498,1.37783479,17326.0,17325.0,11.80661307]
[1673368242782,1.32521163,17326.0,17325.0,11.80661307]
[1673368243254,1.32521163,17326.0,17325.0,11.72802207]
[1673368243501,1.49783479,17326.0,17325.0,11.72802207]
[1673368244519,1.49783479,17326.0,17325.0,11.80661307]
[1673368245777,1.32521163,17326.0,17325.0,11.80661307]
[1673368246524,1.32521163,17326.0,17325.0,11.72802207]
[1673368247278,1.32421163,17326.0,17325.0,11.72802207]
[1673368247527,1.49683479,17326.0,17325.0,11.72802207]
[1673368248798,1.75583891,17326.0,17325.0,11.72802207]
[1673368249318,1.75683891,17326.0,17325.0,11.72802207]
[1673368249570,1.92961299,17326.0,17325.0,11.72802207]
[1673368250064,2.10226879,17326.0,17325.0,11.72802207]
[1673368250346,2.36129291,17326.0,17325.0,11.72802207]
[1673368250569,2.10226879,17326.0,17325.0,11.72802207]
[1673368250807,3.25711589,17326.0,17325.0,11.72802207]
[1673368251056,3.67428167,17326.0,17325.0,11.72802207]
[1673368251569,1.98226879,17326.0,17325.0,11.72802207]
[1673368251810,1.20644367,17326.0,17325.0,11.72802207]
[1673368252062,2.10227653,17326.0,17325.0,11.72802207]
[1673368252317,2.51352769,17326.0,17325.0,11.72802207]
[1673368252570,0.77481429,17326.0,17325.0,11.72802207]
[1673368252814,0.94743056,17326.0,17325.0,11.72802207]
[1673368253305,0.77481551,17326.0,17325.0,11.80661307]
[1673368254063,0.77481551,17326.0,17325.0,11.72802207]
[1673368254621,0.6021122,17326.0,17325.0,11.80661307]
[1673368255461,0.6011122,17326.0,17325.0,11.80661307]
[1673368255624,0.6021122,17326.0,17325.0,11.80661307]
[1673368255856,0.6021122,17326.0,17325.0,11.72802207]
[1673368256639,0.60214287,17326.0,17325.0,11.72802207]
[1673368257122,0.60214287,17326.0,17325.0,11.80661307]
[1673368259105,0.223098,17326.0,17325.0,11.80661307]
[1673368259354,0.60214287,17326.0,17325.0,11.72802207]
[1673368259601,0.77381551,17326.0,17325.0,11.72802207]
[1673368260350,0.60122886,17326.0,17325.0,11.80661307]
[1673368260857,0.48122886,17326.0,17325.0,11.80661307]
[1673368261113,0.60122886,17326.0,17325.0,11.80661307]
[1673368261364,0.48122886,17326.0,17325.0,11.72802207]
[1673368261614,0.60122886,17326.0,17325.0,11.80693408]
[1673368262112,0.60122886,17326.0,17325.0,11.80661307]
[1673368262362,0.1608734,17326.0,17325.0,12.96508802]
[1673368262615,0.1608734,17326.0,17325.0,13.54228802]
[1673368263618,0.33368399,17326.0,17325.0,13.54228802]
[1673368264358,0.33368399,17326.0,17325.0,12.96101307]
[1673368264607,0.76531551,17326.0,17325.0,11.80661307]
[1673368264890,2.50285459,17326.0,17325.0,11.72802207]
[1673368265125,2.50285459,17326.0,17325.0,11.80661307]
[1673368265371,2.15745735,17326.0,17325.0,11.72796138]
[1673368265638,2.5033147,17326.0,17325.0,11.80655238]
[1673368265863,2.3833147,17326.0,17325.0,11.80655238]
[1673368266136,2.5118147,17326.0,17325.0,11.72796138]
[1673368266380,0.77461487,17326.0,17325.0,11.72796138]
[1673368266641,0.77461487,17326.0,17325.0,11.80655238]
[1673368267388,0.94753485,17326.0,17325.0,11.80655238]
[1673368267642,0.77461487,17326.0,17325.0,11.80655238]
[1673368267942,0.60174097,17326.0,17325.0,11.80655238]
[1673368268394,0.48174097,17326.0,17325.0,11.80655238]
[1673368268649,0.60174097,17326.0,17325.0,11.80655238]
[1673368269650,0.77461487,17326.0,17325.0,11.80655238]
[1673368269887,1.92934744,17326.0,17325.0,11.80655238]
[1673368270140,1.92934744,17326.0,17325.0,11.72796138]
[1673368270406,2.10162324,17326.0,17325.0,11.72796138]
[1673368271134,2.5144174,17326.0,17325.0,11.72796138]
[1673368271384,0.77474744,17326.0,17325.0,11.72796138]
[1673368271633,0.59339649,17326.0,17325.0,11.80655238]
[1673368271884,0.59339649,17326.0,17325.0,13.61343868]
[1673368271885,0.3338798,17326.0,17325.0,13.61343868]
[1673368272149,0.1608734,17326.0,17325.0,13.61343868]
[1673368272404,0.1608734,17326.0,17325.0,12.96095238]
[1673368272664,0.1608734,17326.0,17325.0,13.66455916]
[1673368272923,0.1608734,17326.0,17325.0,13.82770959]
[1673368273173,0.1608734,17326.0,17325.0,14.52770959]
[1673368273418,0.1608734,17326.0,17325.0,14.09044903]
[1673368273667,0.1608734,17326.0,17325.0,13.83302542]
[1673368273917,0.0408734,17326.0,17325.0,14.09044903]
[1673368274163,0.0558734,17326.0,17325.0,13.84702542]
[1673368274383,0.0558734,17326.0,17325.0,14.55692899]
[1673368274627,0.0558734,17326.0,17325.0,14.38485595]
[1673368276682,0.0558734,17326.0,17325.0,14.38517696]
[1673368277951,0.0558734,17326.0,17325.0,14.55725]
[1673368278206,0.0558734,17326.0,17325.0,13.84734643]
[1673368278460,0.0558734,17326.0,17325.0,15.46216946]
[1673368278700,0.0558734,17326.0,17325.0,15.41431867]
[1673368278953,0.0558734,17326.0,17325.0,15.06236745]
[1673368279445,0.0558734,17326.0,17325.0,15.14715646]
[1673368279701,0.0558734,17326.0,17325.0,14.43302888]
[1673368280217,0.0558734,17326.0,17325.0,14.26110433]
[1673368280480,0.0558734,17326.0,17325.0,14.21325354]
[1673368282550,0.09353734,17326.0,17325.0,14.21325354]
[1673368282818,0.09353734,17326.0,17325.0,13.84719794]
[1673368284349,0.09353734,17326.0,17325.0,14.14719794]
[1673368284593,0.09353734,17326.0,17325.0,14.84210679]
[1673368284834,0.09353734,17326.0,17325.0,14.40462155]
[1673368285079,0.09353734,17326.0,17325.0,14.14719794]
[1673368285338,0.09353734,17326.0,17325.0,14.39302079]
[1673368285586,0.09353734,17326.0,17325.0,13.84719794]
[1673368285865,0.09353734,17326.0,17325.0,14.37296289]
[1673368286359,0.09353734,17326.0,17325.0,14.20103834]
[1673368286619,0.09353734,17326.0,17325.0,13.67527339]
[1673368286875,0.09353734,17326.0,17325.0,13.84719794]
[1673368287136,0.09353734,17326.0,17325.0,14.14719794]
[1673368287632,0.09353734,17326.0,17325.0,14.80675082]
[1673368288407,0.09353734,17326.0,17325.0,14.33482627]
[1673368290223,0.09343093,17326.0,17325.0,14.33482627]
[1673368290471,0.05266394,17326.0,17325.0,14.33482627]
[1673368290766,0.05266394,17326.0,17325.0,14.33450526]
[1673368291511,0.05266394,17326.0,17325.0,14.32943688]
[1673368292549,0.05266394,17326.0,17325.0,13.62943688]
[1673368294324,0.05266394,17326.0,17325.0,13.62975789]
[1673368295345,0.05266394,17326.0,17325.0,13.62943688]
[1673368297367,0.05266394,17326.0,17325.0,12.969884]
[1673368297611,0.05266394,17326.0,17325.0,12.392684]
[1673368301991,0.05266394,17326.0,17325.0,12.314093]
[1673368302243,0.05266394,17326.0,17325.0,12.392684]
[1673368307207,0.48518703,17326.0,17325.0,11.736893]
[1673368307460,0.22567034,17326.0,17325.0,11.736893]
[1673368307933,0.21067034,17326.0,17325.0,11.717893]
[1673368308179,0.52318703,17326.0,17325.0,11.719893]
[1673368308684,0.53168703,17326.0,17325.0,11.719893]
[1673368308922,0.70553798,17326.0,17325.0,11.719893]
[1673368309175,0.90553798,17326.0,17325.0,11.719893]
[1673368309413,2.90553798,17326.0,17325.0,11.719893]
[1673368310155,3.07821468,17326.0,17325.0,11.72021401]
[1673368310399,2.73235733,17326.0,17325.0,11.72021401]